{"text_format":"3","workbook":"xlsx","n_sheets":2,"sheets":["Algus","Teenusearve"],"not_rendered":{"images":1,"defined_names":1},"read":"whole","date_system":"1900"}

{"sheet":"Algus","index":0,"n_rows":8,"n_cols":2,"rows_kept":8}
[null,"TEAVE SELLE MALLI KOHTA"]
[null,"Selle malli abil saate luua teenusearve."]
[null,"Sisestage arve number, kuupäev, ettevõtte nimi ja tunnuslause ning arve saaja üksikasjad."]
[null,"Sisestage teave tabelitesse."]
[null,"Kokku arvutatakse automaatselt."]
[null,"Märkus. "]
[null,"Töölehe TEENUSEARVE veerus A on toodud lisajuhised. See tekst on tahtlikult peidetud. Teksti eemaldamiseks valige veerg A ja seejärel käsk KUSTUTA. Teksti kuvamiseks valige veerg A ja muutke seejärel fondi värvi."]
[null,"Tabelite kohta lisateabe saamiseks vajutage tabelis tõstuklahvi (SHIFT) ja seejärel klahvi F10, valige TABELI suvand ja seejärel käsk ASETEKST."]

{"sheet":"Teenusearve","index":1,"n_rows":43,"n_cols":5,"rows_kept":43,"merged":[[0,1,0,2],[0,3,0,4],[1,1,1,4],[2,1,2,3],[3,1,3,3],[4,1,4,2],[5,1,5,2],[6,1,6,2],[7,1,7,2],[41,1,41,2],[41,3,41,4],[42,1,42,4]]}
["Siin töölehel saate koostada teenusearve. Sisestage ettevõtte logo parempoolsesse lahtrisse ja selle töölehe pealkiri lahtrisse D1. Töölehe kasutamise kohta käivad kasulikud juhised leiate selle veeru lahtritest. Järgmine juhis on lahtris A3.","Selles lahtris on logo kohatäide.",null,"ARVE"]
[]
["Parempoolsesse lahtrisse sisestage ettevõtte nimi.","Teie ettevõtte nimi"]
["Parempoolsesse lahtrisse sisestage ettevõtte tunnuslause.","Teie ettevõtte tunnuslause"]
["Parempoolsesse lahtrisse sisestage ettevõtte aadress (tänav, maja) ja arve number lahtrisse E5.","Tänav, maja",null,"ARVE NR","Nr"]
["Parempoolsesse lahtrisse sisestage linn, maakond ja sihtnumber ning kuupäev lahtrisse E6.","Linn, maakond, sihtnumber",null,"KUUPÄEV ",{"$f":"TODAY()","v":"2019-04-19"}]
["Parempoolsesse lahtrisse sisestage telefoni- ja faksinumbrid ja lahtrisse E7 ID.","Telefoninumber, faks",null,"KLIENDI ID ","ID"]
["Parempoolsesse lahtrisse sisestage meiliaadress.","Meiliaadress"]
["Parempoolsesse lahtris kuvatakse silt „Adressaat“. Sisestage arve saaja andmed nagu nimi, ettevõtte nimi, aadress ja telefoninumber lahtrivahemikku C9–C13. Järgmised juhised on toodud lahtris A14.","ADRESSAAT","Nimi"]
[null,null,"Ettevõtte nimi"]
[null,null,"Tänav, maja"]
[null,null,"Linn, maakond, sihtnumber"]
[null,null,"Telefon"]
["Sisestage teave parempoolsest lahtrist algavasse tabelisse „Müügi andmed“. Järgmine juhis on lahtris A17.","MÜÜGIESINDAJA","TÖÖ","MAKSETINGIMUSED","TÄHTAEG"]
[{"$nulls":3},"Tasumine kättesaamisel"]
[]
["Sisestage teave parempoolsest lahtrist algavasse tabelisse Arve. Vahesumma ja kokku arvutatakse automaatselt. Järgmised juhised on toodud lahtris A42.","KOGUS","KIRJELDUS","ÜHIKU HIND","REA KOGUSUMMA"]
[{"$nulls":4},{"$f":"IF(SUM(B18)>0,SUM(B18*Teenusearve!$D18),\"\")","v":""}]
[{"$nulls":4},{"$f":"IF(SUM(B19)>0,SUM(B19*Teenusearve!$D19),\"\")","v":""}]
[{"$nulls":4},{"$f":"IF(SUM(B20)>0,SUM(B20*Teenusearve!$D20),\"\")","v":""}]
[{"$nulls":4},{"$f":"IF(SUM(B21)>0,SUM(B21*Teenusearve!$D21),\"\")","v":""}]
[{"$nulls":4},{"$f":"IF(SUM(B22)>0,SUM(B22*Teenusearve!$D22),\"\")","v":""}]
[{"$nulls":4},{"$f":"IF(SUM(B23)>0,SUM(B23*Teenusearve!$D23),\"\")","v":""}]
[{"$nulls":4},{"$f":"IF(SUM(B24)>0,SUM(B24*Teenusearve!$D24),\"\")","v":""}]
[{"$nulls":4},{"$f":"IF(SUM(B25)>0,SUM(B25*Teenusearve!$D25),\"\")","v":""}]
[{"$nulls":4},{"$f":"IF(SUM(B26)>0,SUM(B26*Teenusearve!$D26),\"\")","v":""}]
[{"$nulls":4},{"$f":"IF(SUM(B27)>0,SUM(B27*Teenusearve!$D27),\"\")","v":""}]
[{"$nulls":4},{"$f":"IF(SUM(B28)>0,SUM(B28*Teenusearve!$D28),\"\")","v":""}]
[{"$nulls":4},{"$f":"IF(SUM(B29)>0,SUM(B29*Teenusearve!$D29),\"\")","v":""}]
[{"$nulls":4},{"$f":"IF(SUM(B30)>0,SUM(B30*Teenusearve!$D30),\"\")","v":""}]
[{"$nulls":4},{"$f":"IF(SUM(B31)>0,SUM(B31*Teenusearve!$D31),\"\")","v":""}]
[{"$nulls":4},{"$f":"IF(SUM(B32)>0,SUM(B32*Teenusearve!$D32),\"\")","v":""}]
[{"$nulls":4},{"$f":"IF(SUM(B33)>0,SUM(B33*Teenusearve!$D33),\"\")","v":""}]
[{"$nulls":4},{"$f":"IF(SUM(B34)>0,SUM(B34*Teenusearve!$D34),\"\")","v":""}]
[{"$nulls":4},{"$f":"IF(SUM(B35)>0,SUM(B35*Teenusearve!$D35),\"\")","v":""}]
[{"$nulls":4},{"$f":"IF(SUM(B36)>0,SUM(B36*Teenusearve!$D36),\"\")","v":""}]
[{"$nulls":4},{"$f":"IF(SUM(B37)>0,SUM(B37*Teenusearve!$D37),\"\")","v":""}]
[{"$nulls":3},"VAHESUMMA",{"$f":"IF(SUM(E18:E37)>0,SUM(E18:E37),\"\")","v":""}]
[{"$nulls":3},"KÄIBEMAKS"]
[{"$nulls":3},"KOKKU",{"$f":"IF(SUM(E38)>0,SUM((E38*E39)+E38),\"\")","v":""}]
[]
["Lahtris D42 värskendatakse ettevõtte nimi automaatselt.","Tšeki alusel makstakse raha",null,{"$f":"B3","v":"Teie ettevõtte nimi"}]
["Paremal asuvas lahtris on tänufraasiga sõnum.","TÄNAME TELLIMUSE EEST!"]